[Event "Titled Tuesday Blitz July 18 Late 2023"]
[White "Izuzquiza Gonzalez, Javier"]
[Black "Topalov, Aleksandar"]
[WhiteFideId "3101029"]
[BlackFideId "925659"]
[WhiteElo "2260"]
[BlackElo "2380"]
[Result "1-0"]
[Round "6"]
[TimeControl "180+2"]
[Date "2023.07.18"]
[WhiteClock "0:00:10"]
[BlackClock "0:00:00"]
[Board "136"]

1. d4 {[%clk 0:03:00]}  Nf6 {[%clk 0:02:59]} 2. c4 {[%clk 0:03:00]}  c5 {[%clk 0:02:59]} 3. d5 {[%clk 0:03:00]}  d6 {[%clk 0:02:59]} 4. Nc3 {[%clk 0:03:00]}  g6 {[%clk 0:03:00]} 5. Nf3 {[%clk 0:03:00]}  Bg7 {[%clk 0:03:00]} 6. g3 {[%clk 0:03:00]}  O-O {[%clk 0:03:00]} 7. Bg2 {[%clk 0:03:01]}  Na6 {[%clk 0:03:00]} 8. O-O {[%clk 0:03:02]}  Nc7 {[%clk 0:03:00]} 9. Re1 {[%clk 0:02:59]}  Rb8 {[%clk 0:02:59]} 10. a4 {[%clk 0:02:58]}  b6 {[%clk 0:02:59]} 11. e4 {[%clk 0:02:57]}  a6 {[%clk 0:02:59]} 12. h3 {[%clk 0:02:57]}  b5 {[%clk 0:02:59]} 13. axb5 {[%clk 0:02:54]}  axb5 {[%clk 0:02:57]} 14. e5 {[%clk 0:02:53]}  Nfe8 {[%clk 0:02:56]} 15. cxb5 {[%clk 0:02:38]}  Nxb5 {[%clk 0:02:45]} 16. Bg5 {[%clk 0:02:34]}  f6 {[%clk 0:02:42]} 17. exf6 {[%clk 0:02:33]}  exf6 {[%clk 0:02:42]} 18. Bf4 {[%clk 0:02:32]}  f5 {[%clk 0:02:13]} 19. Qd2 {[%clk 0:02:25]}  Nf6 {[%clk 0:02:09]} 20. Ng5 {[%clk 0:02:22]}  Nd4 {[%clk 0:02:03]} 21. Ra7 {[%clk 0:02:11]}  Rb7 {[%clk 0:01:17]} 22. Rxb7 {[%clk 0:02:06]}  Bxb7 {[%clk 0:01:17]} 23. Ne6 {[%clk 0:02:06]}  Qd7 {[%clk 0:00:46]} 24. Nxf8 {[%clk 0:01:48]}  Bxf8 {[%clk 0:00:46]} 25. b4 {[%clk 0:01:36]}  Bg7 {[%clk 0:00:11]} 26. bxc5 {[%clk 0:01:34]}  dxc5 {[%clk 0:00:11]} 27. Be5 {[%clk 0:01:23]}  Nxd5 {[%clk 0:00:09]} 28. Nxd5 {[%clk 0:01:18]}  Bxd5 {[%clk 0:00:06]} 29. Bxg7 {[%clk 0:00:25]}  Kxg7 {[%clk 0:00:05]} 30. Qc3 {[%clk 0:00:14]}  Bxg2 {[%clk 0:00:04]} 31. Kxg2 {[%clk 0:00:15]}  Qd5+ {[%clk 0:00:03]} 32. f3 {[%clk 0:00:15]}  Qa2+ {[%clk 0:00:03]} 33. Kg1 {[%clk 0:00:12]}  Kh6 {[%clk 0:00:00]} 34. Qe3+ {[%clk 0:00:10]} 1-0


[Site "https://www.chess.com"]

[Event "Titled Tuesday Blitz July 18 Late 2023"]
[White "Sarkar, Justin"]
[Black "Schuster, Karsten"]
[WhiteFideId "2010011"]
[BlackFideId "4611071"]
[WhiteElo "2242"]
[BlackElo "2332"]
[Result "1-0"]
[Round "6"]
[TimeControl "180+2"]
[Date "2023.07.18"]
[WhiteClock "0:00:03"]
[BlackClock "0:01:14"]
[Board "138"]

1. e4 {[%clk 0:02:37]}  d5 {[%clk 0:02:59]} 2. exd5 {[%clk 0:02:36]}  Qxd5 {[%clk 0:03:00]} 3. Nc3 {[%clk 0:02:36]}  Qd6 {[%clk 0:03:00]} 4. g3 {[%clk 0:02:35]}  c6 {[%clk 0:03:00]} 5. Bg2 {[%clk 0:02:34]}  Nf6 {[%clk 0:03:00]} 6. Nf3 {[%clk 0:02:28]}  Bg4 {[%clk 0:03:00]} 7. O-O {[%clk 0:02:19]}  e6 {[%clk 0:03:00]} 8. h3 {[%clk 0:02:16]}  Bh5 {[%clk 0:02:59]} 9. d3 {[%clk 0:02:08]}  Qc7 {[%clk 0:02:58]} 10. Rb1 {[%clk 0:01:48]}  Nbd7 {[%clk 0:02:50]} 11. g4 {[%clk 0:01:26]}  Bg6 {[%clk 0:02:50]} 12. Nh4 {[%clk 0:01:25]}  Be7 {[%clk 0:02:49]} 13. Nxg6 {[%clk 0:01:12]}  hxg6 {[%clk 0:02:48]} 14. b4 {[%clk 0:01:12]}  a6 {[%clk 0:02:47]} 15. Bd2 {[%clk 0:01:04]}  Bd6 {[%clk 0:02:34]} 16. Re1 {[%clk 0:00:55]}  Kf8 {[%clk 0:02:28]} 17. a4 {[%clk 0:00:52]}  Bf4 {[%clk 0:02:16]} 18. b5 {[%clk 0:00:50]}  Bxd2 {[%clk 0:02:16]} 19. Qxd2 {[%clk 0:00:49]}  Nd5 {[%clk 0:02:01]} 20. bxc6 {[%clk 0:00:42]}  bxc6 {[%clk 0:02:01]} 21. Ne2 {[%clk 0:00:28]}  Rb8 {[%clk 0:01:45]} 22. c4 {[%clk 0:00:26]}  Ne7 {[%clk 0:01:40]} 23. d4 {[%clk 0:00:23]}  Rd8 {[%clk 0:01:38]} 24. Qb4 {[%clk 0:00:15]}  c5 {[%clk 0:01:36]} 25. dxc5 {[%clk 0:00:13]}  Nxc5 {[%clk 0:01:35]} 26. Red1 {[%clk 0:00:07]}  Rc8 {[%clk 0:01:28]} 27. a5 {[%clk 0:00:05]}  g5 {[%clk 0:01:23]} 28. Qb6 {[%clk 0:00:04]}  Qe5 {[%clk 0:01:14]} 29. Rd8+ {[%clk 0:00:03]} 1-0


[Site "https://www.chess.com"]

[Event "Titled Tuesday Blitz July 18 Late 2023"]
[White "Herbst, Richard"]
[Black "Cardenas Carbajal, Nilson"]
[WhiteFideId "2041251"]
[BlackFideId "8401128"]
[WhiteElo "2324"]
[BlackElo "2183"]
[Result "0-1"]
[Round "6"]
[TimeControl "180+2"]
[Date "2023.07.18"]
[WhiteClock "0:02:33"]
[BlackClock "0:01:55"]
[Board "139"]

1. e4 {[%clk 0:03:00]}  e5 {[%clk 0:02:58]} 2. Nf3 {[%clk 0:03:00]}  Nc6 {[%clk 0:02:57]} 3. Bb5 {[%clk 0:02:58]}  a6 {[%clk 0:02:57]} 4. Ba4 {[%clk 0:02:58]}  Nf6 {[%clk 0:02:54]} 5. O-O {[%clk 0:02:57]}  Nxe4 {[%clk 0:02:54]} 6. Re1 {[%clk 0:02:55]}  Nc5 {[%clk 0:02:48]} 7. Bxc6 {[%clk 0:02:51]}  dxc6 {[%clk 0:02:43]} 8. Nxe5 {[%clk 0:02:51]}  Be7 {[%clk 0:02:39]} 9. d4 {[%clk 0:02:51]}  Ne6 {[%clk 0:02:29]} 10. Be3 {[%clk 0:02:51]}  O-O {[%clk 0:02:29]} 11. c4 {[%clk 0:02:51]}  Bf6 {[%clk 0:02:20]} 12. Nc3 {[%clk 0:02:50]}  Re8 {[%clk 0:02:14]} 13. h3 {[%clk 0:02:50]}  c5 {[%clk 0:02:02]} 14. Nf3 {[%clk 0:02:39]}  cxd4 {[%clk 0:02:00]} 15. Nxd4 {[%clk 0:02:39]}  Nxd4 {[%clk 0:02:00]} 16. Bxd4 {[%clk 0:02:38]}  Rxe1+ {[%clk 0:02:00]} 17. Qxe1 {[%clk 0:02:39]}  Bxd4 {[%clk 0:01:58]} 18. Rd1 {[%clk 0:02:39]}  c5 {[%clk 0:01:58]} 19. Nd5 {[%clk 0:02:33]}  Be6 {[%clk 0:01:55]} 0-1


[Site "https://www.chess.com"]

[Event "Titled Tuesday Blitz July 18 Late 2023"]
[White "Vila Dupla, Aurelio"]
[Black "Sadovsky, Artem"]
[WhiteFideId "2203383"]
[BlackFideId "4155840"]
[WhiteElo "2227"]
[BlackElo "2549"]
[Result "0-1"]
[Round "6"]
[TimeControl "180+2"]
[Date "2023.07.18"]
[WhiteClock "0:00:39"]
[BlackClock "0:01:36"]
[Board "140"]

1. Nf3 {[%clk 0:03:00]}  g6 {[%clk 0:03:00]} 2. d4 {[%clk 0:03:00]}  Bg7 {[%clk 0:03:01]} 3. c4 {[%clk 0:03:00]}  d6 {[%clk 0:03:01]} 4. g3 {[%clk 0:02:59]}  e5 {[%clk 0:03:01]} 5. dxe5 {[%clk 0:02:58]}  dxe5 {[%clk 0:03:02]} 6. Qxd8+ {[%clk 0:02:57]}  Kxd8 {[%clk 0:03:03]} 7. Nc3 {[%clk 0:02:57]}  f6 {[%clk 0:03:03]} 8. Bd2 {[%clk 0:02:57]}  Be6 {[%clk 0:03:02]} 9. O-O-O {[%clk 0:02:55]}  Nd7 {[%clk 0:03:01]} 10. b3 {[%clk 0:02:52]}  Nh6 {[%clk 0:02:59]} 11. h3 {[%clk 0:02:39]}  Nf7 {[%clk 0:02:59]} 12. h4 {[%clk 0:02:36]}  c6 {[%clk 0:03:00]} 13. Bh3 {[%clk 0:02:36]}  Bxh3 {[%clk 0:02:52]} 14. Rxh3 {[%clk 0:02:36]}  Kc7 {[%clk 0:02:53]} 15. h5 {[%clk 0:02:25]}  f5 {[%clk 0:02:50]} 16. Rdh1 {[%clk 0:02:22]}  e4 {[%clk 0:02:47]} 17. hxg6 {[%clk 0:02:13]}  hxg6 {[%clk 0:02:44]} 18. Rxh8 {[%clk 0:02:10]}  Rxh8 {[%clk 0:02:44]} 19. Rxh8 {[%clk 0:02:10]}  Bxh8 {[%clk 0:02:44]} 20. Nh4 {[%clk 0:01:54]}  Nde5 {[%clk 0:02:38]} 21. f4 {[%clk 0:01:48]}  exf3 {[%clk 0:02:12]} 22. exf3 {[%clk 0:01:48]}  Bf6 {[%clk 0:02:03]} 23. Bf4 {[%clk 0:01:21]}  Bxh4 {[%clk 0:02:04]} 24. gxh4 {[%clk 0:01:19]}  Kd7 {[%clk 0:01:53]} 25. Bxe5 {[%clk 0:01:12]}  Nxe5 {[%clk 0:01:54]} 26. f4 {[%clk 0:01:12]}  Nd3+ {[%clk 0:01:52]} 27. Kd2 {[%clk 0:01:12]}  Nxf4 {[%clk 0:01:53]} 28. Nd1 {[%clk 0:01:02]}  Ng2 {[%clk 0:01:48]} 29. h5 {[%clk 0:00:58]}  gxh5 {[%clk 0:01:49]} 30. Ke2 {[%clk 0:00:57]}  Ke6 {[%clk 0:01:43]} 31. Kf3 {[%clk 0:00:57]}  Ne1+ {[%clk 0:01:39]} 32. Kg3 {[%clk 0:00:54]}  Kf6 {[%clk 0:01:39]} 33. Ne3 {[%clk 0:00:39]}  Kg5 {[%clk 0:01:36]} 0-1


[Site "https://www.chess.com"]

[Event "Titled Tuesday Blitz July 18 Late 2023"]
[White "Palencia Morales, Wilson Guillermo"]
[Black "rikchessmx"]
[WhiteFideId "4401859"]
[WhiteElo "2541"]
[BlackElo "2256"]
[Result "1-0"]
[Round "6"]
[TimeControl "180+2"]
[Date "2023.07.18"]
[WhiteClock "0:00:17"]
[BlackClock "0:00:00"]
[Board "142"]

1. d4 {[%clk 0:02:58]}  Nf6 {[%clk 0:02:59]} 2. c4 {[%clk 0:02:57]}  g6 {[%clk 0:03:00]} 3. Nf3 {[%clk 0:02:57]}  d5 {[%clk 0:03:00]} 4. Nc3 {[%clk 0:02:57]}  Bg7 {[%clk 0:03:00]} 5. Bg5 {[%clk 0:02:56]}  Ne4 {[%clk 0:02:59]} 6. cxd5 {[%clk 0:02:56]}  Nxg5 {[%clk 0:02:59]} 7. Nxg5 {[%clk 0:02:56]}  e6 {[%clk 0:02:59]} 8. Qd2 {[%clk 0:02:56]}  Bh6 {[%clk 0:02:49]} 9. f4 {[%clk 0:02:27]}  exd5 {[%clk 0:02:44]} 10. Qe3+ {[%clk 0:02:25]}  Kf8 {[%clk 0:02:43]} 11. O-O-O {[%clk 0:02:18]}  c6 {[%clk 0:02:41]} 12. h4 {[%clk 0:02:12]}  Qe7 {[%clk 0:02:17]} 13. Qxe7+ {[%clk 0:01:57]}  Kxe7 {[%clk 0:02:17]} 14. e3 {[%clk 0:01:56]}  Bg4 {[%clk 0:02:10]} 15. Re1 {[%clk 0:01:55]}  f6 {[%clk 0:02:09]} 16. Nf3 {[%clk 0:01:54]}  Bg7 {[%clk 0:02:05]} 17. Bd3 {[%clk 0:01:49]}  f5 {[%clk 0:01:57]} 18. Nh2 {[%clk 0:01:39]}  Bh5 {[%clk 0:01:56]} 19. Be2 {[%clk 0:01:36]}  Bxe2 {[%clk 0:01:54]} 20. Rxe2 {[%clk 0:01:36]}  Nd7 {[%clk 0:01:52]} 21. g4 {[%clk 0:01:35]}  Kf6 {[%clk 0:01:43]} 22. h5 {[%clk 0:01:34]}  fxg4 {[%clk 0:01:39]} 23. Nxg4+ {[%clk 0:01:26]}  Kf5 {[%clk 0:01:40]} 24. Rg2 {[%clk 0:01:25]}  Rae8 {[%clk 0:01:09]} 25. Kd2 {[%clk 0:01:21]}  Nb6 {[%clk 0:00:59]} 26. b3 {[%clk 0:01:20]}  Nd7 {[%clk 0:00:46]} 27. Ne2 {[%clk 0:01:08]}  c5 {[%clk 0:00:30]} 28. h6 {[%clk 0:01:03]}  Bf8 {[%clk 0:00:27]} 29. Nf2 {[%clk 0:01:00]}  Be7 {[%clk 0:00:20]} 30. Ng3+ {[%clk 0:00:54]}  Ke6 {[%clk 0:00:20]} 31. Ne2 {[%clk 0:00:50]}  b6 {[%clk 0:00:19]} 32. Nd3 {[%clk 0:00:50]}  Kd6 {[%clk 0:00:17]} 33. Ne5 {[%clk 0:00:47]}  Rhf8 {[%clk 0:00:14]} 34. Rg4 {[%clk 0:00:36]}  Nf6 {[%clk 0:00:14]} 35. Rg2 {[%clk 0:00:33]}  Ne4+ {[%clk 0:00:14]} 36. Kd3 {[%clk 0:00:33]}  Bf6 {[%clk 0:00:13]} 37. Nc3 {[%clk 0:00:30]}  Nxc3 {[%clk 0:00:11]} 38. Kxc3 {[%clk 0:00:28]}  Bxe5 {[%clk 0:00:08]} 39. fxe5+ {[%clk 0:00:26]}  Ke6 {[%clk 0:00:07]} 40. Rhh2 {[%clk 0:00:22]}  Rf3 {[%clk 0:00:06]} 41. Kd3 {[%clk 0:00:19]}  Ref8 {[%clk 0:00:06]} 42. Rc2 {[%clk 0:00:17]}  cxd4 {[%clk 0:00:00]} 43. Kxd4 {[%clk 0:00:17]} 1-0


[Site "https://www.chess.com"]

[Event "Titled Tuesday Blitz July 18 Late 2023"]
[White "SoyuzTM4"]
[Black "Eggleston, Thomas A"]
[BlackFideId "412139"]
[WhiteElo "2227"]
[BlackElo "2357"]
[Result "0-1"]
[Round "6"]
[TimeControl "180+2"]
[Date "2023.07.18"]
[WhiteClock "0:00:00"]
[BlackClock "0:00:24"]
[Board "146"]

1. e4 {[%clk 0:03:00]}  e6 {[%clk 0:03:00]} 2. d4 {[%clk 0:03:00]}  d5 {[%clk 0:03:00]} 3. e5 {[%clk 0:03:00]}  c5 {[%clk 0:03:00]} 4. c3 {[%clk 0:03:00]}  Nc6 {[%clk 0:03:01]} 5. Nf3 {[%clk 0:03:00]}  Qb6 {[%clk 0:03:01]} 6. a3 {[%clk 0:03:00]}  f6 {[%clk 0:03:02]} 7. Bd3 {[%clk 0:02:58]}  fxe5 {[%clk 0:03:01]} 8. dxe5 {[%clk 0:02:58]}  c4 {[%clk 0:03:01]} 9. Bc2 {[%clk 0:02:57]}  Nh6 {[%clk 0:03:01]} 10. O-O {[%clk 0:02:56]}  Nf7 {[%clk 0:03:01]} 11. Re1 {[%clk 0:02:52]}  Bd7 {[%clk 0:03:01]} 12. Nbd2 {[%clk 0:02:50]}  g5 {[%clk 0:02:59]} 13. b3 {[%clk 0:02:35]}  cxb3 {[%clk 0:02:47]} 14. Nxb3 {[%clk 0:02:31]}  g4 {[%clk 0:02:47]} 15. Nfd4 {[%clk 0:02:10]}  Ncxe5 {[%clk 0:02:39]} 16. Rb1 {[%clk 0:01:59]}  Qc7 {[%clk 0:02:38]} 17. Bf4 {[%clk 0:01:52]}  Bd6 {[%clk 0:02:32]} 18. Qe2 {[%clk 0:01:35]}  O-O-O {[%clk 0:02:22]} 19. Bg3 {[%clk 0:01:19]}  h5 {[%clk 0:02:18]} 20. Nb5 {[%clk 0:01:16]}  Bxb5 {[%clk 0:02:17]} 21. Qxb5 {[%clk 0:01:16]}  a6 {[%clk 0:02:09]} 22. Qa5 {[%clk 0:01:09]}  h4 {[%clk 0:02:00]} 23. Qxc7+ {[%clk 0:01:07]}  Bxc7 {[%clk 0:02:00]} 24. Bf4 {[%clk 0:01:06]}  h3 {[%clk 0:01:50]} 25. Nd4 {[%clk 0:01:04]}  hxg2 {[%clk 0:01:41]} 26. Kxg2 {[%clk 0:01:02]}  Nf3 {[%clk 0:01:35]} 27. Bxc7 {[%clk 0:00:58]}  Kxc7 {[%clk 0:01:07]} 28. Nxe6+ {[%clk 0:00:57]}  Kd6 {[%clk 0:01:06]} 29. Nxd8 {[%clk 0:00:56]}  Rxh2+ {[%clk 0:01:02]} 30. Kg3 {[%clk 0:00:55]}  Nxd8 {[%clk 0:00:43]} 31. Rh1 {[%clk 0:00:43]}  Rxh1 {[%clk 0:00:37]} 32. Rxh1 {[%clk 0:00:42]}  Ne5 {[%clk 0:00:37]} 33. Bf5 {[%clk 0:00:38]}  Ndc6 {[%clk 0:00:36]} 34. Bxg4 {[%clk 0:00:37]}  Kc5 {[%clk 0:00:34]} 35. Rh5 {[%clk 0:00:34]}  Nc4 {[%clk 0:00:33]} 36. a4 {[%clk 0:00:29]}  Nb2 {[%clk 0:00:33]} 37. Bf3 {[%clk 0:00:29]}  Ne7 {[%clk 0:00:27]} 38. a5 {[%clk 0:00:25]}  Nc4 {[%clk 0:00:26]} 39. Rh7 {[%clk 0:00:25]}  Kd6 {[%clk 0:00:26]} 40. Kf4 {[%clk 0:00:21]}  Nxa5 {[%clk 0:00:26]} 41. Rh6+ {[%clk 0:00:21]}  Kc5 {[%clk 0:00:25]} 42. Re6 {[%clk 0:00:19]}  Nac6 {[%clk 0:00:25]} 43. Be2 {[%clk 0:00:19]}  a5 {[%clk 0:00:25]} 44. Kg3 {[%clk 0:00:18]}  a4 {[%clk 0:00:25]} 45. f4 {[%clk 0:00:18]}  a3 {[%clk 0:00:25]} 46. Bd1 {[%clk 0:00:16]}  a2 {[%clk 0:00:25]} 47. f5 {[%clk 0:00:00]}  a1=Q {[%clk 0:00:24]} 0-1


[Site "https://www.chess.com"]

[Event "Titled Tuesday Blitz July 18 Late 2023"]
[White "Kujawski, Adam"]
[Black "Sailer, Mike"]
[WhiteFideId "1100920"]
[BlackFideId "2012901"]
[WhiteElo "2335"]
[BlackElo "2163"]
[Result "1/2-1/2"]
[Round "6"]
[TimeControl "180+2"]
[Date "2023.07.18"]
[WhiteClock "0:00:02"]
[BlackClock "0:00:03"]
[Board "148"]

1. e4 {[%clk 0:03:00]}  d5 {[%clk 0:02:59]} 2. exd5 {[%clk 0:03:00]}  Qxd5 {[%clk 0:03:00]} 3. Nc3 {[%clk 0:03:00]}  Qd6 {[%clk 0:03:01]} 4. d4 {[%clk 0:03:00]}  c6 {[%clk 0:03:02]} 5. Bc4 {[%clk 0:02:57]}  Nf6 {[%clk 0:03:01]} 6. Nge2 {[%clk 0:02:57]}  Bf5 {[%clk 0:03:01]} 7. Bf4 {[%clk 0:02:56]}  Qd8 {[%clk 0:03:01]} 8. Qd2 {[%clk 0:02:56]}  e6 {[%clk 0:03:01]} 9. O-O-O {[%clk 0:02:53]}  Nbd7 {[%clk 0:03:02]} 10. f3 {[%clk 0:02:49]}  Nb6 {[%clk 0:03:02]} 11. Bd3 {[%clk 0:02:48]}  Bxd3 {[%clk 0:03:02]} 12. Qxd3 {[%clk 0:02:48]}  Bd6 {[%clk 0:03:02]} 13. g4 {[%clk 0:02:45]}  Qc7 {[%clk 0:03:00]} 14. Bxd6 {[%clk 0:02:36]}  Qxd6 {[%clk 0:03:01]} 15. Ne4 {[%clk 0:02:25]}  Qe7 {[%clk 0:02:45]} 16. h3 {[%clk 0:02:05]}  O-O-O {[%clk 0:02:31]} 17. Qb3 {[%clk 0:01:58]}  h5 {[%clk 0:02:05]} 18. Kb1 {[%clk 0:01:16]}  hxg4 {[%clk 0:01:58]} 19. hxg4 {[%clk 0:01:15]}  Rxh1 {[%clk 0:01:46]} 20. Rxh1 {[%clk 0:01:16]}  Nxe4 {[%clk 0:01:39]} 21. fxe4 {[%clk 0:01:16]}  e5 {[%clk 0:01:38]} 22. dxe5 {[%clk 0:01:02]}  Qxe5 {[%clk 0:01:28]} 23. Qxf7 {[%clk 0:00:58]}  Qxe4 {[%clk 0:01:18]} 24. Qf5+ {[%clk 0:00:56]}  Qxf5 {[%clk 0:01:18]} 25. gxf5 {[%clk 0:00:57]}  Rd2 {[%clk 0:00:57]} 26. Ng3 {[%clk 0:00:48]}  Rg2 {[%clk 0:00:54]} 27. Ne4 {[%clk 0:00:45]}  Nd5 {[%clk 0:00:48]} 28. c3 {[%clk 0:00:15]}  Ne3 {[%clk 0:00:47]} 29. f6 {[%clk 0:00:15]}  gxf6 {[%clk 0:00:40]} 30. Nxf6 {[%clk 0:00:15]}  Kc7 {[%clk 0:00:27]} 31. Ne4 {[%clk 0:00:14]}  Nd5 {[%clk 0:00:18]} 32. Re1 {[%clk 0:00:12]}  b5 {[%clk 0:00:16]} 33. a3 {[%clk 0:00:11]}  a5 {[%clk 0:00:16]} 34. Kc1 {[%clk 0:00:10]}  b4 {[%clk 0:00:16]} 35. axb4 {[%clk 0:00:09]}  axb4 {[%clk 0:00:16]} 36. c4 {[%clk 0:00:09]}  Nf4 {[%clk 0:00:14]} 37. Rd1 {[%clk 0:00:07]}  b3 {[%clk 0:00:10]} 38. Nd2 {[%clk 0:00:05]}  Nd3+ {[%clk 0:00:08]} 39. Kb1 {[%clk 0:00:05]}  Nf2 {[%clk 0:00:08]} 40. Rf1 {[%clk 0:00:02]}  Nd3 {[%clk 0:00:05]} 41. Rd1 {[%clk 0:00:02]}  Nf2 {[%clk 0:00:04]} 42. Rf1 {[%clk 0:00:01]}  Nd3 {[%clk 0:00:03]} 43. Rd1 {[%clk 0:00:02]} 1/2-1/2


[Site "https://www.chess.com"]

[Event "Titled Tuesday Blitz July 18 Late 2023"]
[White "Burke, Paul"]
[Black "Garmendiarov"]
[WhiteFideId "2605767"]
[WhiteElo "1990"]
[BlackElo "2298"]
[Result "0-1"]
[Round "6"]
[TimeControl "180+2"]
[Date "2023.07.18"]
[WhiteClock "0:02:09"]
[BlackClock "0:01:25"]
[Board "156"]

1. e4 {[%clk 0:03:00]}  c5 {[%clk 0:03:00]} 2. Nf3 {[%clk 0:03:00]}  d6 {[%clk 0:03:01]} 3. d4 {[%clk 0:03:00]}  cxd4 {[%clk 0:03:01]} 4. c3 {[%clk 0:03:00]}  Nf6 {[%clk 0:02:57]} 5. Bd3 {[%clk 0:02:58]}  dxc3 {[%clk 0:02:57]} 6. Nxc3 {[%clk 0:02:58]}  Nc6 {[%clk 0:02:57]} 7. O-O {[%clk 0:02:58]}  e5 {[%clk 0:02:57]} 8. h3 {[%clk 0:02:57]}  Be7 {[%clk 0:02:57]} 9. Bc4 {[%clk 0:02:54]}  O-O {[%clk 0:02:51]} 10. Qe2 {[%clk 0:02:54]}  h6 {[%clk 0:02:50]} 11. Rd1 {[%clk 0:02:54]}  Be6 {[%clk 0:02:49]} 12. Bxe6 {[%clk 0:02:51]}  fxe6 {[%clk 0:02:50]} 13. Be3 {[%clk 0:02:42]}  Qa5 {[%clk 0:02:40]} 14. Qd2 {[%clk 0:02:38]}  Nh5 {[%clk 0:02:03]} 15. Bxh6 {[%clk 0:02:33]}  Nf4 {[%clk 0:01:33]} 16. Bxf4 {[%clk 0:02:31]}  Rxf4 {[%clk 0:01:34]} 17. Nd5 {[%clk 0:02:12]}  exd5 {[%clk 0:01:26]} 18. exd5 {[%clk 0:02:09]}  Qxd2 {[%clk 0:01:25]} 0-1


[Site "https://www.chess.com"]

[Event "Titled Tuesday Blitz July 18 Late 2023"]
[White "Navyblue1"]
[Black "Chemin, Justo Reinaldo"]
[BlackFideId "2101580"]
[WhiteElo "1852"]
[BlackElo "2261"]
[Result "1/2-1/2"]
[Round "6"]
[TimeControl "180+2"]
[Date "2023.07.18"]
[WhiteClock "0:00:07"]
[BlackClock "0:00:18"]
[Board "159"]

1. d4 {[%clk 0:03:00]}  d5 {[%clk 0:02:58]} 2. c4 {[%clk 0:03:00]}  dxc4 {[%clk 0:02:59]} 3. e4 {[%clk 0:02:57]}  Nf6 {[%clk 0:02:58]} 4. e5 {[%clk 0:02:47]}  Nd5 {[%clk 0:02:58]} 5. Bxc4 {[%clk 0:02:46]}  Nb6 {[%clk 0:02:58]} 6. Be2 {[%clk 0:02:36]}  Nc6 {[%clk 0:02:56]} 7. Nf3 {[%clk 0:02:34]}  Bg4 {[%clk 0:02:54]} 8. Be3 {[%clk 0:02:28]}  e6 {[%clk 0:02:52]} 9. O-O {[%clk 0:02:25]}  Nd5 {[%clk 0:02:51]} 10. Nc3 {[%clk 0:01:58]}  Be7 {[%clk 0:02:39]} 11. Nxd5 {[%clk 0:01:44]}  Qxd5 {[%clk 0:02:36]} 12. h3 {[%clk 0:01:42]}  Bh5 {[%clk 0:02:35]} 13. Qa4 {[%clk 0:01:18]}  O-O {[%clk 0:02:26]} 14. Rfd1 {[%clk 0:01:15]}  a6 {[%clk 0:02:20]} 15. a3 {[%clk 0:01:03]}  Rfd8 {[%clk 0:02:20]} 16. Rac1 {[%clk 0:00:35]}  Rac8 {[%clk 0:02:01]} 17. Bc4 {[%clk 0:00:18]}  Qe4 {[%clk 0:01:43]} 18. Bd3 {[%clk 0:00:16]}  Qd5 {[%clk 0:01:42]} 19. Bc4 {[%clk 0:00:17]}  Qa5 {[%clk 0:01:27]} 20. Qxa5 {[%clk 0:00:16]}  Nxa5 {[%clk 0:01:26]} 21. Be2 {[%clk 0:00:15]}  b5 {[%clk 0:01:18]} 22. b4 {[%clk 0:00:15]}  Nb7 {[%clk 0:01:03]} 23. Rc6 {[%clk 0:00:14]}  a5 {[%clk 0:01:02]} 24. Bxb5 {[%clk 0:00:12]}  axb4 {[%clk 0:01:01]} 25. axb4 {[%clk 0:00:13]}  Bxf3 {[%clk 0:00:58]} 26. gxf3 {[%clk 0:00:13]}  Bxb4 {[%clk 0:00:58]} 27. Ba6 {[%clk 0:00:14]}  Rb8 {[%clk 0:00:56]} 28. Bxb7 {[%clk 0:00:12]}  Rxb7 {[%clk 0:00:55]} 29. Rb1 {[%clk 0:00:12]}  Rdb8 {[%clk 0:00:53]} 30. Kg2 {[%clk 0:00:11]}  Ba5 {[%clk 0:00:49]} 31. Rxb7 {[%clk 0:00:11]}  Rxb7 {[%clk 0:00:49]} 32. Rc4 {[%clk 0:00:11]}  Bb6 {[%clk 0:00:49]} 33. f4 {[%clk 0:00:11]}  Ra7 {[%clk 0:00:49]} 34. Kf3 {[%clk 0:00:11]}  Ra3 {[%clk 0:00:49]} 35. Kg2 {[%clk 0:00:11]}  Kf8 {[%clk 0:00:49]} 36. Kg3 {[%clk 0:00:11]}  Ke7 {[%clk 0:00:50]} 37. Rc6 {[%clk 0:00:11]}  Kd7 {[%clk 0:00:50]} 38. Rc4 {[%clk 0:00:11]}  f6 {[%clk 0:00:47]} 39. Kg2 {[%clk 0:00:10]}  fxe5 {[%clk 0:00:47]} 40. fxe5 {[%clk 0:00:11]}  Rd3 {[%clk 0:00:43]} 41. h4 {[%clk 0:00:11]}  g6 {[%clk 0:00:42]} 42. Kf1 {[%clk 0:00:09]}  Rd1+ {[%clk 0:00:38]} 43. Kg2 {[%clk 0:00:09]}  Rh1 {[%clk 0:00:39]} 44. Kg3 {[%clk 0:00:09]}  Rg1+ {[%clk 0:00:38]} 45. Kh2 {[%clk 0:00:09]}  Rd1 {[%clk 0:00:34]} 46. Kg2 {[%clk 0:00:09]}  h5 {[%clk 0:00:33]} 47. Kh2 {[%clk 0:00:09]}  c6 {[%clk 0:00:33]} 48. Kg2 {[%clk 0:00:09]}  Kc7 {[%clk 0:00:29]} 49. Ra4 {[%clk 0:00:08]}  Kb7 {[%clk 0:00:30]} 50. Kh2 {[%clk 0:00:09]}  Rd3 {[%clk 0:00:29]} 51. Kg2 {[%clk 0:00:08]}  Bc7 {[%clk 0:00:27]} 52. Kf1 {[%clk 0:00:07]}  Bb6 {[%clk 0:00:27]} 53. Ke2 {[%clk 0:00:07]}  Rb3 {[%clk 0:00:27]} 54. Kf1 {[%clk 0:00:07]}  Rb5 {[%clk 0:00:26]} 55. Ke2 {[%clk 0:00:06]}  c5 {[%clk 0:00:26]} 56. dxc5 {[%clk 0:00:06]}  Bxc5 {[%clk 0:00:26]} 57. Bxc5 {[%clk 0:00:06]}  Rxc5 {[%clk 0:00:27]} 58. Re4 {[%clk 0:00:06]}  Kc6 {[%clk 0:00:26]} 59. Ke3 {[%clk 0:00:06]}  Kd5 {[%clk 0:00:26]} 60. Kf4 {[%clk 0:00:03]}  Rc2 {[%clk 0:00:16]} 61. f3 {[%clk 0:00:03]}  Rh2 {[%clk 0:00:15]} 62. Kg3 {[%clk 0:00:04]}  Rh1 {[%clk 0:00:16]} 63. Re3 {[%clk 0:00:02]}  Rg1+ {[%clk 0:00:15]} 64. Kf2 {[%clk 0:00:02]}  Rh1 {[%clk 0:00:15]} 65. Kg3 {[%clk 0:00:02]}  Rd1 {[%clk 0:00:15]} 66. Re4 {[%clk 0:00:02]}  Rd4 {[%clk 0:00:15]} 67. Kf4 {[%clk 0:00:02]}  Rxe4+ {[%clk 0:00:14]} 68. fxe4+ {[%clk 0:00:02]}  Kd4 {[%clk 0:00:14]} 69. Kg5 {[%clk 0:00:03]}  Kxe5 {[%clk 0:00:15]} 70. Kxg6 {[%clk 0:00:03]}  Kxe4 {[%clk 0:00:15]} 71. Kxh5 {[%clk 0:00:04]}  Kd3 {[%clk 0:00:15]} 72. Kg6 {[%clk 0:00:05]}  e5 {[%clk 0:00:16]} 73. h5 {[%clk 0:00:05]}  e4 {[%clk 0:00:17]} 74. h6 {[%clk 0:00:06]}  e3 {[%clk 0:00:18]} 75. h7 {[%clk 0:00:06]}  e2 {[%clk 0:00:19]} 76. h8=Q {[%clk 0:00:06]}  e1=Q {[%clk 0:00:18]} 77. Qd8+ {[%clk 0:00:06]}  Kc2 {[%clk 0:00:18]} 78. Qc8+ {[%clk 0:00:06]}  Kd1 {[%clk 0:00:17]} 79. Qd7+ {[%clk 0:00:06]}  Kc2 {[%clk 0:00:17]} 80. Qc7+ {[%clk 0:00:06]}  Kd3 {[%clk 0:00:17]} 81. Qd7+ {[%clk 0:00:06]}  Ke2 {[%clk 0:00:18]} 82. Qe6+ {[%clk 0:00:06]}  Kf1 {[%clk 0:00:18]} 83. Qxe1+ {[%clk 0:00:07]}  Kxe1 {[%clk 0:00:18]} 1/2-1/2


[Site "https://www.chess.com"]